[Event "Late-Titled-Tuesday-Blitz-June-04-2024"]
[Site "Chess.com"]
[Date "2024.06.04"]
[Round "3"]
[White "Maus7"]
[Black "pirulillo"]
[Result "1-0"]
[WhiteElo "2566"]
[BlackElo "2363"]
[TimeControl "180+1"]
[EndTime "14:27:59 PDT"]
[Termination "Maus7 won by resignation"]

1. e4 {[%clk 0:03:00.9]} 1... c5 {[%clk 0:02:57]} 2. Nf3 {[%clk 0:03:00.8]} 2...
e6 {[%clk 0:02:56.2]} 3. d4 {[%clk 0:03:00.9]} 3... cxd4 {[%clk 0:02:54.9]} 4.
Nxd4 {[%clk 0:03:01.8]} 4... Nf6 {[%clk 0:02:53.7]} 5. Nc3 {[%clk 0:03:01.3]}
5... Nc6 {[%clk 0:02:52.3]} 6. Ndb5 {[%clk 0:02:57.2]} 6... d6 {[%clk
0:02:35.2]} 7. Bf4 {[%clk 0:02:56.5]} 7... e5 {[%clk 0:02:35.3]} 8. Bg5 {[%clk
0:02:57.1]} 8... a6 {[%clk 0:02:32.6]} 9. Na3 {[%clk 0:02:57.1]} 9... b5 {[%clk
0:02:33.1]} 10. Nd5 {[%clk 0:02:57]} 10... Be7 {[%clk 0:02:32.3]} 11. Bxf6
{[%clk 0:02:57.3]} 11... Bxf6 {[%clk 0:02:33.2]} 12. c3 {[%clk 0:02:57.8]} 12...
O-O {[%clk 0:02:32.8]} 13. Nc2 {[%clk 0:02:57.5]} 13... Bg5 {[%clk 0:02:33.7]}
14. a4 {[%clk 0:02:57.2]} 14... bxa4 {[%clk 0:02:34.3]} 15. Rxa4 {[%clk
0:02:58]} 15... a5 {[%clk 0:02:30.3]} 16. Bc4 {[%clk 0:02:56.3]} 16... Rb8
{[%clk 0:02:28.1]} 17. Ra2 {[%clk 0:02:55.3]} 17... Kh8 {[%clk 0:02:28.1]} 18.
b3 {[%clk 0:02:44.1]} 18... f5 {[%clk 0:02:15.6]} 19. exf5 {[%clk 0:02:39.3]}
19... Bxf5 {[%clk 0:02:16.5]} 20. O-O {[%clk 0:02:28.5]} 20... e4 {[%clk
0:02:11.5]} 21. Nd4 {[%clk 0:02:20.5]} 21... Ne5 {[%clk 0:02:06.4]} 22. Nxf5
{[%clk 0:02:00.6]} 22... Rxf5 {[%clk 0:02:07.3]} 23. Qe2 {[%clk 0:01:58.6]}
23... Nxc4 {[%clk 0:01:44]} 24. bxc4 {[%clk 0:01:48.1]} 24... Re5 {[%clk
0:01:41.1]} 25. Rfa1 {[%clk 0:01:40.3]} 25... h6 {[%clk 0:01:24]} 26. Rxa5
{[%clk 0:01:31.2]} 26... Qxa5 {[%clk 0:01:21.8]} 27. Rxa5 {[%clk 0:01:30.7]}
27... Rb1+ {[%clk 0:01:22.3]} 28. Qf1 {[%clk 0:01:31]} 28... Rxf1+ {[%clk
0:01:20.9]} 29. Kxf1 {[%clk 0:01:31.9]} 29... e3 {[%clk 0:01:18.7]} 30. fxe3
{[%clk 0:00:42.2]} 30... Bxe3 {[%clk 0:01:12.9]} 31. Ra8+ {[%clk 0:00:41.8]}
31... Kh7 {[%clk 0:01:11.3]} 32. Nxe3 {[%clk 0:00:32]} 32... Rxe3 {[%clk
0:01:12.2]} 33. Ra3 {[%clk 0:00:31.5]} 33... Re4 {[%clk 0:01:10.6]} 34. Ra4
{[%clk 0:00:31.3]} 34... Re3 {[%clk 0:01:08.1]} 35. Ra3 {[%clk 0:00:30.1]} 35...
Re4 {[%clk 0:01:07.5]} 36. Kf2 {[%clk 0:00:29.6]} 36... Rxc4 {[%clk 0:01:07.3]}
37. Ke3 {[%clk 0:00:29.8]} 37... Kg6 {[%clk 0:01:04.2]} 38. Kd3 {[%clk
0:00:29.4]} 38... Rc6 {[%clk 0:01:04.5]} 39. Ra5 {[%clk 0:00:28.8]} 39... Kf6
{[%clk 0:01:04.2]} 40. c4 {[%clk 0:00:26.4]} 40... Ke6 {[%clk 0:01:03.4]} 41.
Ra7 {[%clk 0:00:24.9]} 41... Kf6 {[%clk 0:01:01.9]} 42. Kd4 {[%clk 0:00:21.7]}
42... Rb6 {[%clk 0:01:02]} 43. Ra2 {[%clk 0:00:19.2]} 43... Rc6 {[%clk 0:01:00]}
44. Re2 {[%clk 0:00:18.1]} 44... Ra6 {[%clk 0:00:58.9]} 45. g3 {[%clk
0:00:17.9]} 45... g5 {[%clk 0:00:57.8]} 46. Kd5 {[%clk 0:00:17.9]} 46... Kf5
{[%clk 0:00:57.1]} 47. h3 {[%clk 0:00:16.6]} 47... h5 {[%clk 0:00:56.1]} 48.
Rf2+ {[%clk 0:00:16.6]} 48... Kg6 {[%clk 0:00:55.7]} 49. g4 {[%clk 0:00:16.4]}
49... h4 {[%clk 0:00:54.3]} 50. Re2 {[%clk 0:00:16.4]} 50... Ra3 {[%clk
0:00:52.6]} 51. Kxd6 {[%clk 0:00:16.2]} 51... Rxh3 {[%clk 0:00:51.5]} 52. Rc2
{[%clk 0:00:16.3]} 52... Rg3 {[%clk 0:00:50.5]} 53. c5 {[%clk 0:00:16.7]} 53...
Rxg4 {[%clk 0:00:50.8]} 54. c6 {[%clk 0:00:17.2]} 54... Rf4 {[%clk 0:00:51.2]}
55. c7 {[%clk 0:00:17.2]} 55... Rf8 {[%clk 0:00:51.8]} 56. c8=Q {[%clk
0:00:15.9]} 56... Rxc8 {[%clk 0:00:51.5]} 57. Rxc8 {[%clk 0:00:16.8]} 57... h3
{[%clk 0:00:51.4]} 58. Ke5 {[%clk 0:00:16.4]} 58... g4 {[%clk 0:00:48.6]} 59.
Kf4 {[%clk 0:00:16.5]} 59... h2 {[%clk 0:00:47.6]} 60. Rh8 {[%clk 0:00:15.9]}
60... g3 {[%clk 0:00:48.1]} 61. Kxg3 {[%clk 0:00:15.9]} 61... h1=Q {[%clk
0:00:48.3]} 62. Rxh1 {[%clk 0:00:15.8]} 1-0

[Event "Late-Titled-Tuesday-Blitz-June-04-2024"]
[Site "Chess.com"]
[Date "2024.06.04"]
[Round "3"]
[White "SahaNeelash"]
[Black "eljanov"]
[Result "0-1"]
[WhiteElo "2675"]
[BlackElo "2914"]
[TimeControl "180+1"]
[EndTime "14:28:00 PDT"]
[Termination "eljanov won by resignation"]

1. d4 {[%clk 0:02:55.9]} 1... d5 {[%clk 0:02:59.7]} 2. Bf4 {[%clk 0:02:56]} 2...
c5 {[%clk 0:02:59.4]} 3. e3 {[%clk 0:02:56.3]} 3... Nc6 {[%clk 0:02:59]} 4. c3
{[%clk 0:02:55.7]} 4... Bf5 {[%clk 0:02:57.1]} 5. Nd2 {[%clk 0:02:43]} 5... e6
{[%clk 0:02:54.1]} 6. Qb3 {[%clk 0:02:42.2]} 6... Qd7 {[%clk 0:02:52.7]} 7. Ngf3
{[%clk 0:02:37.2]} 7... c4 {[%clk 0:02:51.9]} 8. Qd1 {[%clk 0:02:37.4]} 8... b5
{[%clk 0:02:41.6]} 9. Nh4 {[%clk 0:02:33.5]} 9... Bd6 {[%clk 0:02:37.8]} 10.
Nxf5 {[%clk 0:02:31.8]} 10... exf5 {[%clk 0:02:38.7]} 11. Qf3 {[%clk 0:02:10.2]}
11... Bxf4 {[%clk 0:02:31.3]} 12. Qxf4 {[%clk 0:02:11.1]} 12... Nf6 {[%clk
0:02:28.7]} 13. Be2 {[%clk 0:02:01]} 13... O-O {[%clk 0:02:27.7]} 14. O-O {[%clk
0:01:58.2]} 14... Rfe8 {[%clk 0:02:26.3]} 15. Bf3 {[%clk 0:01:51.9]} 15... h6
{[%clk 0:02:17.6]} 16. h4 {[%clk 0:01:49.3]} 16... a5 {[%clk 0:02:05.6]} 17. b3
{[%clk 0:01:46.1]} 17... a4 {[%clk 0:01:54.1]} 18. b4 {[%clk 0:01:39]} 18... Ne7
{[%clk 0:01:47.8]} 19. a3 {[%clk 0:01:34.9]} 19... Ne4 {[%clk 0:01:46.3]} 20.
Bxe4 {[%clk 0:01:22]} 20... dxe4 {[%clk 0:01:45.8]} 21. Rac1 {[%clk 0:01:13]}
21... Nd5 {[%clk 0:01:45.8]} 22. Qh2 {[%clk 0:01:12.7]} 22... Ra6 {[%clk
0:01:44.4]} 23. Kh1 {[%clk 0:01:10.8]} 23... Rf6 {[%clk 0:01:28.8]} 24. Qh3
{[%clk 0:01:01.6]} 24... g5 {[%clk 0:01:18.7]} 25. g3 {[%clk 0:00:36.8]} 25...
Kg7 {[%clk 0:01:18.6]} 26. Kg2 {[%clk 0:00:32.6]} 26... Qc6 {[%clk 0:01:08.6]}
27. hxg5 {[%clk 0:00:28.5]} 27... hxg5 {[%clk 0:01:08.6]} 28. Rh1 {[%clk
0:00:29.4]} 28... Rg8 {[%clk 0:01:00.1]} 29. g4 {[%clk 0:00:20.4]} 29... f4
{[%clk 0:00:50.4]} 30. Qh7+ {[%clk 0:00:17.3]} 30... Kf8 {[%clk 0:00:50.6]} 31.
Nxe4 {[%clk 0:00:17.9]} 31... Re6 {[%clk 0:00:49]} 32. Rhe1 {[%clk 0:00:11.5]}
32... Nxc3 {[%clk 0:00:40.2]} 33. Rxc3 {[%clk 0:00:08.4]} 33... Rxe4 {[%clk
0:00:40.4]} 34. f3 {[%clk 0:00:08.3]} 34... Re6 {[%clk 0:00:38.5]} 35. e4 {[%clk
0:00:08.5]} 35... Rh6 {[%clk 0:00:38.6]} 36. Qf5 {[%clk 0:00:08.8]} 36... Rgh8
{[%clk 0:00:28.4]} 37. Qxg5 {[%clk 0:00:06.8]} 37... Rh2+ {[%clk 0:00:28.5]} 38.
Kf1 {[%clk 0:00:07.5]} 38... Rd2 {[%clk 0:00:24.7]} 39. Qd8+ {[%clk 0:00:07.2]}
39... Kg7 {[%clk 0:00:24.1]} 40. Qg5+ {[%clk 0:00:07.6]} 40... Qg6 {[%clk
0:00:24.3]} 41. Qxg6+ {[%clk 0:00:05.4]} 41... Kxg6 {[%clk 0:00:24.6]} 42. Re2
{[%clk 0:00:05.2]} 42... Rd1+ {[%clk 0:00:20.7]} 43. Kg2 {[%clk 0:00:05.5]}
43... Rdh1 {[%clk 0:00:18.8]} 0-1

[Event "Late-Titled-Tuesday-Blitz-June-04-2024"]
[Site "Chess.com"]
[Date "2024.06.04"]
[Round "3"]
[White "Mikhail_Golubev"]
[Black "Kirill_Klukin"]
[Result "0-1"]
[WhiteElo "2502"]
[BlackElo "2819"]
[TimeControl "180+1"]
[EndTime "14:28:03 PDT"]
[Termination "Kirill_Klukin won on time"]

1. e4 {[%clk 0:03:00.9]} 1... e6 {[%clk 0:02:59.4]} 2. d4 {[%clk 0:03:00.6]}
2... d5 {[%clk 0:03:00.1]} 3. e5 {[%clk 0:03:01.1]} 3... c5 {[%clk 0:03:00.3]}
4. c3 {[%clk 0:03:01.7]} 4... Nc6 {[%clk 0:03:01]} 5. Nf3 {[%clk 0:03:01.8]}
5... Nge7 {[%clk 0:03:01.3]} 6. Na3 {[%clk 0:02:52]} 6... Bd7 {[%clk 0:03:00.7]}
7. Be2 {[%clk 0:02:44.9]} 7... Nf5 {[%clk 0:02:49.5]} 8. Nc2 {[%clk 0:02:43]}
8... cxd4 {[%clk 0:02:40.2]} 9. cxd4 {[%clk 0:02:42.3]} 9... Qa5+ {[%clk
0:02:40.9]} 10. Kf1 {[%clk 0:02:30.8]} 10... Qb6 {[%clk 0:02:41.2]} 11. g4
{[%clk 0:02:08.6]} 11... Nfe7 {[%clk 0:02:41.2]} 12. Kg2 {[%clk 0:02:05.2]}
12... h5 {[%clk 0:02:37.1]} 13. h3 {[%clk 0:02:04.4]} 13... Ng6 {[%clk
0:02:33.7]} 14. Be3 {[%clk 0:01:52.7]} 14... Be7 {[%clk 0:02:32.6]} 15. g5
{[%clk 0:01:35.8]} 15... Rc8 {[%clk 0:02:23.7]} 16. Rb1 {[%clk 0:01:28.2]} 16...
Na5 {[%clk 0:02:15.1]} 17. Bd3 {[%clk 0:01:05.9]} 17... Nf8 {[%clk 0:02:12]} 18.
g6 {[%clk 0:00:46.9]} 18... f6 {[%clk 0:01:51.3]} 19. exf6 {[%clk 0:00:43.8]}
19... Bxf6 {[%clk 0:01:51.3]} 20. Ne5 {[%clk 0:00:38.6]} 20... Nc4 {[%clk
0:01:28.7]} 21. Bxc4 {[%clk 0:00:30.8]} 21... dxc4 {[%clk 0:01:27.5]} 22. d5
{[%clk 0:00:31.2]} 22... Qa6 {[%clk 0:01:08.7]} 23. Nf7 {[%clk 0:00:19.1]} 23...
Nxg6 {[%clk 0:00:50.6]} 24. Nb4 {[%clk 0:00:12.7]} 24... Qa5 {[%clk 0:00:45]}
25. Nd6+ {[%clk 0:00:12.9]} 25... Ke7 {[%clk 0:00:41]} 26. Nxc8+ {[%clk
0:00:13.8]} 26... Rxc8 {[%clk 0:00:41.2]} 27. a3 {[%clk 0:00:09.9]} 27... Nh4+
{[%clk 0:00:30.9]} 28. Kh2 {[%clk 0:00:09.9]} 28... Nf5 {[%clk 0:00:28.7]} 29.
Re1 {[%clk 0:00:09]} 29... Qc7+ {[%clk 0:00:21]} 30. Kg1 {[%clk 0:00:08]} 30...
Kf8 {[%clk 0:00:18.6]} 31. dxe6 {[%clk 0:00:05.6]} 31... Bxe6 {[%clk 0:00:19]}
32. Bc5+ {[%clk 0:00:05.6]} 32... Qxc5 {[%clk 0:00:15.7]} 33. Rxe6 {[%clk
0:00:04.6]} 33... Ne7 {[%clk 0:00:13.9]} 34. Qf3 {[%clk 0:00:04.4]} 34... a5
{[%clk 0:00:07.5]} 35. Rxf6+ {[%clk 0:00:03.2]} 35... gxf6 {[%clk 0:00:07.7]}
36. Qxf6+ {[%clk 0:00:03.9]} 36... Ke8 {[%clk 0:00:08.4]} 37. Qh8+ {[%clk
0:00:02.6]} 37... Kd7 {[%clk 0:00:07.8]} 38. Rd1+ {[%clk 0:00:02.9]} 38... Kc7
{[%clk 0:00:08.4]} 39. Qf6 {[%clk 0:00:01.8]} 39... axb4 {[%clk 0:00:08.6]} 40.
Qf4+ {[%clk 0:00:01.6]} 40... Kb6 {[%clk 0:00:07.9]} 0-1

[Event "Late-Titled-Tuesday-Blitz-June-04-2024"]
[Site "Chess.com"]
[Date "2024.06.04"]
[Round "3"]
[White "Engima32"]
[Black "Chessgod9oninsta"]
[Result "0-1"]
[WhiteElo "2473"]
[BlackElo "2709"]
[TimeControl "180+1"]
[EndTime "14:28:05 PDT"]
[Termination "Chessgod9oninsta won by checkmate"]

1. a3 {[%clk 0:02:56.3]} 1... a6 {[%clk 0:02:56.8]} 2. d4 {[%clk 0:02:55.7]}
2... d5 {[%clk 0:02:56.7]} 3. Bf4 {[%clk 0:02:53.7]} 3... Bf5 {[%clk 0:02:56.2]}
4. Nf3 {[%clk 0:02:53.8]} 4... e6 {[%clk 0:02:56.1]} 5. e3 {[%clk 0:02:53.2]}
5... c5 {[%clk 0:02:54.7]} 6. c3 {[%clk 0:02:49.7]} 6... Nc6 {[%clk 0:02:53.3]}
7. Nbd2 {[%clk 0:02:49.2]} 7... c4 {[%clk 0:02:52]} 8. Be2 {[%clk 0:02:46.4]}
8... Bd6 {[%clk 0:02:51.3]} 9. O-O {[%clk 0:02:44.4]} 9... Nf6 {[%clk 0:02:51]}
10. Ne5 {[%clk 0:02:42]} 10... O-O {[%clk 0:02:48.8]} 11. f3 {[%clk 0:02:32.9]}
11... Qc7 {[%clk 0:02:42.2]} 12. g4 {[%clk 0:02:27.6]} 12... Bg6 {[%clk
0:02:35.6]} 13. Nxg6 {[%clk 0:02:21.3]} 13... hxg6 {[%clk 0:02:35]} 14. Bxd6
{[%clk 0:02:20.9]} 14... Qxd6 {[%clk 0:02:35]} 15. e4 {[%clk 0:02:21.2]} 15...
Qf4 {[%clk 0:02:33.4]} 16. e5 {[%clk 0:02:18.9]} 16... Nd7 {[%clk 0:02:30.1]}
17. Rf2 {[%clk 0:02:09.6]} 17... b5 {[%clk 0:02:28.9]} 18. Nf1 {[%clk
0:02:08.6]} 18... f6 {[%clk 0:02:22.1]} 19. exf6 {[%clk 0:02:08.3]} 19... Nxf6
{[%clk 0:02:23]} 20. Qd2 {[%clk 0:02:05.2]} 20... Qd6 {[%clk 0:02:19.3]} 21. Ng3
{[%clk 0:01:45.8]} 21... Rf7 {[%clk 0:02:10.4]} 22. f4 {[%clk 0:01:41.3]} 22...
Raf8 {[%clk 0:02:03.2]} 23. Raf1 {[%clk 0:01:37.2]} 23... a5 {[%clk 0:01:58.6]}
24. Kg2 {[%clk 0:01:33.5]} 24... b4 {[%clk 0:01:57]} 25. axb4 {[%clk 0:01:31.1]}
25... axb4 {[%clk 0:01:56.6]} 26. h3 {[%clk 0:01:30.9]} 26... bxc3 {[%clk
0:01:55.7]} 27. bxc3 {[%clk 0:01:31]} 27... Rb8 {[%clk 0:01:53.7]} 28. Qc2
{[%clk 0:01:20.5]} 28... Qa3 {[%clk 0:01:44.2]} 29. Qxg6 {[%clk 0:01:07.7]}
29... Qxc3 {[%clk 0:01:43.1]} 30. f5 {[%clk 0:01:07.8]} 30... Ne7 {[%clk
0:01:13.9]} 31. Qg5 {[%clk 0:01:05]} 31... exf5 {[%clk 0:01:03.2]} 32. Nxf5
{[%clk 0:00:30.4]} 32... Nxf5 {[%clk 0:01:02.5]} 33. Qxf5 {[%clk 0:00:27.2]}
33... Rbf8 {[%clk 0:00:58]} 34. Qe6 {[%clk 0:00:08.2]} 34... Qxd4 {[%clk
0:00:50.6]} 35. Rf4 {[%clk 0:00:07.7]} 35... Qd2 {[%clk 0:00:30.5]} 36. g5
{[%clk 0:00:06.7]} 36... Re8 {[%clk 0:00:30.4]} 37. Qxe8+ {[%clk 0:00:02.2]}
37... Nxe8 {[%clk 0:00:30.2]} 38. Rxf7 {[%clk 0:00:02.7]} 38... Qxe2+ {[%clk
0:00:30.5]} 39. R1f2 {[%clk 0:00:03]} 39... Qe4+ {[%clk 0:00:30.6]} 40. Kh2
{[%clk 0:00:03]} 40... Qe5+ {[%clk 0:00:30.2]} 41. Kh1 {[%clk 0:00:03.2]} 41...
Nd6 {[%clk 0:00:29.9]} 42. g6 {[%clk 0:00:02.8]} 42... Nxf7 {[%clk 0:00:29.5]}
43. gxf7+ {[%clk 0:00:03.6]} 43... Kf8 {[%clk 0:00:29.6]} 44. Kg2 {[%clk
0:00:03.5]} 44... d4 {[%clk 0:00:29.7]} 45. h4 {[%clk 0:00:02.5]} 45... d3
{[%clk 0:00:30.1]} 46. Kh3 {[%clk 0:00:01.8]} 46... c3 {[%clk 0:00:30.6]} 47.
Kg2 {[%clk 0:00:02.2]} 47... d2 {[%clk 0:00:31]} 48. Rf1 {[%clk 0:00:02.6]}
48... c2 {[%clk 0:00:31.1]} 49. Rf2 {[%clk 0:00:03.1]} 49... d1=Q {[%clk
0:00:31.6]} 50. Rf1 {[%clk 0:00:03.5]} 50... c1=Q {[%clk 0:00:31.2]} 51. Rxd1
{[%clk 0:00:03.7]} 51... Qxd1 {[%clk 0:00:31.6]} 52. Kh3 {[%clk 0:00:04.1]}
52... Qf3# {[%clk 0:00:31.6]} 0-1

[Event "Late-Titled-Tuesday-Blitz-June-04-2024"]
[Site "Chess.com"]
[Date "2024.06.04"]
[Round "3"]
[White "shirovin"]
[Black "emeli_chess"]
[Result "0-1"]
[WhiteElo "2095"]
[BlackElo "2372"]
[TimeControl "180+1"]
[EndTime "14:28:05 PDT"]
[Termination "emeli_chess won on time"]

1. e4 {[%clk 0:03:00.9]} 1... c5 {[%clk 0:02:58.5]} 2. Nf3 {[%clk 0:02:59.7]}
2... d6 {[%clk 0:02:58.5]} 3. d4 {[%clk 0:02:59.1]} 3... cxd4 {[%clk 0:02:58.8]}
4. Nxd4 {[%clk 0:02:59.7]} 4... Nf6 {[%clk 0:02:59.3]} 5. Nc3 {[%clk 0:02:59.9]}
5... a6 {[%clk 0:02:59.8]} 6. Bg5 {[%clk 0:02:58.4]} 6... e6 {[%clk 0:02:59.6]}
7. f4 {[%clk 0:02:57.9]} 7... Nbd7 {[%clk 0:02:59.8]} 8. Qf3 {[%clk 0:02:57.6]}
8... Qc7 {[%clk 0:02:59.8]} 9. O-O-O {[%clk 0:02:53.9]} 9... b5 {[%clk
0:02:59.8]} 10. e5 {[%clk 0:02:28.7]} 10... Bb7 {[%clk 0:02:56.7]} 11. Qh3
{[%clk 0:02:28.3]} 11... dxe5 {[%clk 0:02:52.8]} 12. Nxe6 {[%clk 0:02:20.9]}
12... fxe6 {[%clk 0:02:52.7]} 13. Qxe6+ {[%clk 0:02:19.7]} 13... Be7 {[%clk
0:02:52.9]} 14. Bxf6 {[%clk 0:02:12]} 14... gxf6 {[%clk 0:02:32.7]} 15. Be2
{[%clk 0:01:47.9]} 15... h5 {[%clk 0:02:00.7]} 16. Nd5 {[%clk 0:01:46.3]} 16...
Bxd5 {[%clk 0:01:56.6]} 17. Rxd5 {[%clk 0:01:44.8]} 17... exf4 {[%clk 0:00:51]}
18. Bd3 {[%clk 0:01:33.6]} 18... Nf8 {[%clk 0:00:27.2]} 19. Qf5 {[%clk
0:01:10.1]} 19... Rd8 {[%clk 0:00:25.7]} 20. Re1 {[%clk 0:01:02.8]} 20... Rxd5
{[%clk 0:00:23.9]} 21. Qxd5 {[%clk 0:01:00.3]} 21... Qd6 {[%clk 0:00:20.2]} 22.
Qe4 {[%clk 0:00:45.3]} 22... Kf7 {[%clk 0:00:19.3]} 23. a4 {[%clk 0:00:40]}
23... Rg8 {[%clk 0:00:18.9]} 24. axb5 {[%clk 0:00:22]} 24... axb5 {[%clk
0:00:19]} 25. Bxb5 {[%clk 0:00:20.5]} 25... Rg5 {[%clk 0:00:18.6]} 26. Bc4+
{[%clk 0:00:19.9]} 26... Kg7 {[%clk 0:00:18.6]} 27. h3 {[%clk 0:00:19.1]} 27...
Ng6 {[%clk 0:00:17.2]} 28. Bd3 {[%clk 0:00:17.6]} 28... Qe5 {[%clk 0:00:15]} 29.
b4 {[%clk 0:00:11.4]} 29... Qxe4 {[%clk 0:00:13.9]} 30. Rxe4 {[%clk 0:00:11.4]}
30... Rxg2 {[%clk 0:00:12.8]} 31. b5 {[%clk 0:00:09.8]} 31... Ne5 {[%clk
0:00:12.7]} 32. b6 {[%clk 0:00:08.4]} 32... Bd6 {[%clk 0:00:12.7]} 33. Rd4
{[%clk 0:00:07.4]} 33... Nxd3+ {[%clk 0:00:12.1]} 34. Rxd3 {[%clk 0:00:06.8]}
34... Be5 {[%clk 0:00:11.9]} 35. Rd7+ {[%clk 0:00:04.8]} 35... Kg6 {[%clk
0:00:11.4]} 36. b7 {[%clk 0:00:05]} 36... Rg1+ {[%clk 0:00:11.1]} 37. Kd2 {[%clk
0:00:04.1]} 37... Rb1 {[%clk 0:00:11.1]} 38. Re7 {[%clk 0:00:01.3]} 38... f3
{[%clk 0:00:10.3]} 39. Ke3 {[%clk 0:00:01]} 39... Rb2 {[%clk 0:00:09.2]} 0-1

[Event "Late-Titled-Tuesday-Blitz-June-04-2024"]
[Site "Chess.com"]
[Date "2024.06.04"]
[Round "3"]
[White "BerlinDrawer"]
[Black "Viktor_Poddubnyi"]
[Result "1-0"]
[WhiteElo "2575"]
[BlackElo "2376"]
[TimeControl "180+1"]
[EndTime "14:28:06 PDT"]
[Termination "BerlinDrawer won on time"]

1. e4 {[%clk 0:03:00.9]} 1... g6 {[%clk 0:02:59.9]} 2. d4 {[%clk 0:02:59.6]}
2... Bg7 {[%clk 0:03:00.3]} 3. c4 {[%clk 0:02:59.1]} 3... Nc6 {[%clk 0:02:59.9]}
4. Be3 {[%clk 0:02:57.7]} 4... e5 {[%clk 0:02:59.6]} 5. Nf3 {[%clk 0:02:52.4]}
5... exd4 {[%clk 0:02:58.3]} 6. Nxd4 {[%clk 0:02:52.3]} 6... Qf6 {[%clk
0:02:55.6]} 7. Nxc6 {[%clk 0:02:48.4]} 7... dxc6 {[%clk 0:02:56.5]} 8. Nc3
{[%clk 0:02:46.7]} 8... Qe7 {[%clk 0:02:55.6]} 9. f3 {[%clk 0:02:41.3]} 9... Be6
{[%clk 0:02:50]} 10. Be2 {[%clk 0:02:38.3]} 10... Nf6 {[%clk 0:02:40.7]} 11. O-O
{[%clk 0:02:35.6]} 11... a6 {[%clk 0:02:34.9]} 12. Qb3 {[%clk 0:02:25.3]} 12...
O-O-O {[%clk 0:02:31.7]} 13. Qa4 {[%clk 0:02:17.8]} 13... Nd7 {[%clk 0:02:19.2]}
14. Rac1 {[%clk 0:02:12]} 14... Nb6 {[%clk 0:01:45.8]} 15. Bxb6 {[%clk 0:02:01]}
15... cxb6 {[%clk 0:01:46.7]} 16. Nd5 {[%clk 0:01:59.8]} 16... Bxd5 {[%clk
0:00:35.9]} 17. cxd5 {[%clk 0:01:57.1]} 17... c5 {[%clk 0:00:35.9]} 18. b4
{[%clk 0:01:43.3]} 18... Bd4+ {[%clk 0:00:35.3]} 19. Kh1 {[%clk 0:01:43.4]}
19... Kb8 {[%clk 0:00:35.6]} 20. bxc5 {[%clk 0:01:38.7]} 20... Bxc5 {[%clk
0:00:35.4]} 21. Rb1 {[%clk 0:01:31.9]} 21... f5 {[%clk 0:00:28]} 22. Bd3 {[%clk
0:01:30.8]} 22... fxe4 {[%clk 0:00:18.2]} 23. Bxe4 {[%clk 0:01:31.7]} 23... Qe5
{[%clk 0:00:17.5]} 24. f4 {[%clk 0:01:27.5]} 24... Qd4 {[%clk 0:00:14.8]} 25.
Qc2 {[%clk 0:01:22.5]} 25... Rhe8 {[%clk 0:00:13.6]} 26. Rfe1 {[%clk 0:01:10.9]}
26... Re7 {[%clk 0:00:12.3]} 27. Bf3 {[%clk 0:01:05.1]} 27... Rxe1+ {[%clk
0:00:09.5]} 28. Rxe1 {[%clk 0:01:06]} 28... Qxf4 {[%clk 0:00:09.7]} 29. Qd1
{[%clk 0:01:01.7]} 29... Bd6 {[%clk 0:00:09.6]} 30. g3 {[%clk 0:00:59.6]} 30...
Qf6 {[%clk 0:00:09]} 31. Re6 {[%clk 0:00:55.9]} 31... Qc3 {[%clk 0:00:09.3]} 32.
Kg2 {[%clk 0:00:52.6]} 32... Qb2+ {[%clk 0:00:08.6]} 33. Re2 {[%clk 0:00:51.8]}
33... Qc3 {[%clk 0:00:07.1]} 34. Rc2 {[%clk 0:00:46.4]} 34... Qe5 {[%clk
0:00:07.1]} 35. Re2 {[%clk 0:00:46.1]} 35... Qc3 {[%clk 0:00:06.9]} 36. Rc2
{[%clk 0:00:34.6]} 36... Qe5 {[%clk 0:00:06.7]} 37. Qc1 {[%clk 0:00:29.7]} 37...
h5 {[%clk 0:00:06]} 38. Re2 {[%clk 0:00:27.7]} 38... Qd4 {[%clk 0:00:05.7]} 39.
Qg5 {[%clk 0:00:24.6]} 39... Bc5 {[%clk 0:00:01.6]} 40. Qxd8+ {[%clk 0:00:21.5]}
40... Ka7 {[%clk 0:00:02.5]} 41. Qg5 {[%clk 0:00:18.2]} 1-0